[Event "MČR 2022 blesk"]
[Site "Turnov, Czech Republic"]
[Date "2022.09.10"]
[Round "13.5"]
[White "Civin, Tomas"]
[Black "Polak, Tomas"]
[Result "1/2-1/2"]
[TimeControl "2x 3 min + 2s/move"]
[WhiteElo "2394"]
[BlackElo "2475"]

1. e4 {[%clk 00:03:02]} c6 {[%clk 00:03:03]} 2. d4 {[%clk 00:03:00]} {[%emt
00:00:08]} d5 {[%clk 00:03:04]} 3. exd5 {[%clk 00:03:01]} cxd5 {[%clk
00:03:05]} {[%emt 00:00:04]} 4. c4 {[%clk 00:03:01]} Nf6 {[%clk 00:03:06]}
{[%emt 00:00:05]} 5. Nc3 {[%clk 00:03:01]} e6 {[%clk 00:03:07]} 6. Nf3 {[%clk
00:03:02]} Bb4 {[%clk 00:03:05]} {[%emt 00:00:05]} 7. Bd3 {[%clk 00:03:02]}
dxc4 {[%clk 00:03:06]} {[%emt 00:00:04]} 8. Bxc4 {[%clk 00:03:03]} Nc6 {[%clk
00:03:06]} {[%emt 00:00:09]} 9. O-O {[%clk 00:03:04]} O-O {[%clk 00:03:08]} 10.
a3 {[%clk 00:02:58]} Be7 {[%clk 00:03:08]} {[%emt 00:00:05]} 11. Qd3 {[%clk
00:02:56]} {[%emt 00:00:05]} Nd5 {[%clk 00:02:49]} {[%emt 00:00:16]} 12. Re1
{[%clk 00:02:55]} {[%emt 00:00:07]} Bf6 {[%clk 00:02:44]} {[%emt 00:00:05]} 13.
Ne4 {[%clk 00:02:54]} {[%emt 00:00:05]} Bd7 {[%clk 00:02:33]} {[%emt 00:00:09]}
14. Nc5 {[%clk 00:02:25]} {[%emt 00:00:39]} b6 {[%clk 00:02:22]} {[%emt
00:00:05]} 15. Nxd7 {[%clk 00:02:19]} {[%emt 00:00:08]} Qxd7 {[%clk 00:02:23]}
16. Ne5 {[%clk 00:02:15]} {[%emt 00:00:09]} Nxe5 {[%clk 00:02:10]} {[%emt
00:00:17]} 17. dxe5 {[%clk 00:02:15]} {[%emt 00:00:04]} Be7 {[%clk 00:02:12]}
18. Ba2 {[%clk 00:02:09]} {[%emt 00:00:08]} Rfd8 {[%clk 00:02:12]} 19. Bd2
{[%clk 00:02:03]} {[%emt 00:00:05]} Rac8 {[%clk 00:02:07]} {[%emt 00:00:06]} 20.
Rad1 {[%clk 00:02:04]} Qa4 {[%clk 00:02:00]} {[%emt 00:00:15]} 21. Bb1 {[%clk
00:02:04]} g6 {[%clk 00:02:00]} 22. Re4 {[%clk 00:02:02]} {[%emt 00:00:16]} Qc6
{[%clk 00:01:59]} 23. Qe2 {[%clk 00:01:38]} {[%emt 00:00:18]} a5 {[%clk
00:01:52]} {[%emt 00:00:06]} 24. h4 {[%clk 00:01:38]} {[%emt 00:00:06]} Bc5
{[%clk 00:01:49]} {[%emt 00:00:04]} 25. h5 {[%clk 00:01:37]} {[%emt 00:00:09]}
Ne7 {[%clk 00:01:46]} 26. hxg6 {[%emt 00:00:04]} hxg6 {[%clk 00:01:47]} 27. Rh4
{[%clk 00:01:30]} {[%emt 00:00:21]} Nf5 {[%clk 00:01:37]} 28. Bxf5 {[%clk
00:01:30]} exf5 {[%clk 00:01:38]} 29. Bc3 {[%clk 00:01:25]} {[%emt 00:00:10]}
Qe6 {[%clk 00:01:30]} {[%emt 00:00:09]} 30. Rxd8+ {[%clk 00:01:19]} {[%emt
00:00:04]} Rxd8 {[%clk 00:01:31]} 31. Qf3 {[%clk 00:01:11]} {[%emt 00:00:17]}
Be7 {[%clk 00:01:29]} 32. Rd4 {[%clk 00:00:42]} {[%emt 00:00:39]} Rc8 {[%clk
00:01:16]} {[%emt 00:00:06]} 33. Rd5 {[%clk 00:00:39]} {[%emt 00:00:06]} Bf8
{[%clk 00:01:14]} {[%emt 00:00:06]} 34. a4 {[%clk 00:00:37]} {[%emt 00:00:11]}
Qc6 {[%clk 00:00:57]} {[%emt 00:00:12]} 35. Rb5 {[%clk 00:00:35]} {[%emt
00:00:04]} Qxf3 {[%clk 00:00:51]} {[%emt 00:00:05]} 36. gxf3 {[%clk 00:00:37]}
Bc5 {[%clk 00:00:50]} {[%emt 00:00:09]} 37. Kf1 {[%clk 00:00:38]} Kf8 {[%clk
00:00:44]} {[%emt 00:00:06]} 38. Ke2 {[%clk 00:00:38]} Ke7 {[%clk 00:00:44]}
{[%emt 00:00:05]} 39. b4 {[%clk 00:00:35]} {[%emt 00:00:05]} axb4 {[%clk
00:00:33]} {[%emt 00:00:12]} 40. Bxb4 {[%clk 00:00:36]} Ke6 {[%clk 00:00:33]}
41. a5 {[%clk 00:00:31]} {[%emt 00:00:11]} Bxb4 {[%clk 00:00:31]} {[%emt
00:00:35]} 42. Rxb6+ {[%clk 00:00:32]} Kxe5 {[%clk 00:00:31]} 43. Rxb4 {[%clk
00:00:33]} Rc2+ {[%clk 00:00:32]} 44. Ke3 {[%clk 00:00:31]} Rc3+ {[%clk
00:00:33]} 45. Ke2 {[%clk 00:00:31]} Ra3 {[%clk 00:00:34]} 46. Rb5+ {[%clk
00:00:31]} {[%emt 00:00:04]} Kf4 {[%clk 00:00:33]} 47. Rb4+ {[%clk 00:00:32]}
Ke5 {[%clk 00:00:30]} {[%emt 00:00:05]} 48. Rb5+ {[%clk 00:00:33]} Kf4 {[%clk
00:00:19]} {[%emt 00:00:18]} 49. Rb4+ {[%clk 00:00:34]} Kg5 {[%clk 00:00:17]}
50. Rb5 {[%clk 00:00:34]} {[%emt 00:00:44]} Kf6 {[%clk 00:00:16]} 51. Rb6+
{[%clk 00:00:35]} Ke5 {[%clk 00:00:17]} 52. Rb5+ {[%clk 00:00:36]} Ke6 {[%clk
00:00:18]} 53. Rb6+ {[%clk 00:00:37]} Kd5 {[%clk 00:00:20]} 54. Rf6 {[%clk
00:00:38]} {[%emt 00:00:04]} Rxa5 {[%clk 00:00:14]} 55. Rxf7 {[%clk 00:00:39]}
Ke5 {[%clk 00:00:14]} 56. Rg7 {[%clk 00:00:37]} Kf6 {[%clk 00:00:14]} 57. Rg8
{[%clk 00:00:39]} Ra2+ {[%clk 00:00:15]} 58. Ke3 {[%clk 00:00:40]} Ra3+ {[%clk
00:00:16]} 59. Ke2 {[%clk 00:00:37]} g5 {[%clk 00:00:16]} 60. Rb8 {[%clk
00:00:37]} Ra4 {[%clk 00:00:16]} 61. Rb6+ {[%clk 00:00:38]} Ke5 {[%clk
00:00:17]} 62. Rb5+ {[%clk 00:00:39]} Kf4 {[%clk 00:00:19]} 63. Rb2 {[%clk
00:00:39]} {[%emt 00:00:22]} Rc4 {[%clk 00:00:18]} 64. Ra2 {[%clk 00:00:40]}
Rc5 {[%clk 00:00:16]} 65. Rb2 {[%clk 00:00:41]} {[%emt 00:00:04]} Re5+ {[%clk
00:00:17]} 66. Kf1 {[%clk 00:00:42]} Kxf3 {[%clk 00:00:18]} 67. Rb3+ {[%clk
00:00:41]} Kg4 {[%clk 00:00:18]} {[%emt 00:00:04]} 68. Kg2 {[%clk 00:00:42]}
Rc5 {[%clk 00:00:18]} 69. Rg3+ {[%clk 00:00:42]} Kf4 {[%clk 00:00:18]} {[%emt
00:00:04]} 70. Rf3+ {[%clk 00:00:43]} Ke5 71. Re3+ Kf6 {[%clk 00:00:21]} 72.
Ra3 {[%clk 00:00:46]} g4 {[%clk 00:00:20]} {[%emt 00:00:08]} 73. Kg3 {[%clk
00:00:47]} Kg5 {[%clk 00:00:21]} 74. Ra8 {[%clk 00:00:48]} Rc3+ 75. Kg2 Rc4
{[%clk 00:00:22]} {[%emt 00:00:08]} 76. Ra3 {[%clk 00:00:50]} Kf4 {[%clk
00:00:23]} 77. Rb3 {[%clk 00:00:51]} Ke4 {[%clk 00:00:20]} 78. Ra3 {[%clk
00:00:52]} f4 {[%clk 00:00:21]} {[%emt 00:00:18]} 79. f3+ {[%clk 00:00:44]}
gxf3+ {[%clk 00:00:12]} 80. Rxf3 {[%clk 00:00:45]} Rc2+ {[%clk 00:00:13]}
{[%emt 00:00:05]} 81. Rf2 {[%clk 00:00:47]} Rc3 {[%clk 00:00:12]} 82. Re2+
{[%clk 00:00:45]} {[%emt 00:00:09]} Re3 {[%clk 00:00:12]} 83. Ra2 {[%clk
00:00:46]} f3+ {[%clk 00:00:11]} {[%emt 00:00:04]} 84. Kf2 {[%clk 00:00:47]}
Kf4 {[%clk 00:00:12]} 85. Ra4+ {[%clk 00:00:47]} Re4 {[%clk 00:00:13]} 1/2-1/2

[Event "MČR 2022 blesk"]
[Site "Turnov, Czech Republic"]
[Date "2022.09.10"]
[Round "14.1"]
[White "Plat, Vojtech"]
[Black "Civin, Tomas"]
[Result "1/2-1/2"]
[TimeControl "2x 3 min + 2s/move"]
[WhiteElo "2484"]
[BlackElo "2394"]

1. e4 {[%clk 00:03:02]} {[%emt 00:00:05]} e5 {[%clk 00:03:03]} 2. Nf3 {[%clk
00:03:03]} Nc6 {[%clk 00:03:04]} {[%emt 00:00:04]} 3. Bb5 f5 4. Nc3 {[%clk
00:03:05]} {[%emt 00:00:07]} fxe4 {[%clk 00:03:06]} 5. Nxe4 {[%clk 00:03:05]}
d5 {[%clk 00:03:08]} 6. Ng3 {[%clk 00:03:06]} Qf6 {[%clk 00:03:02]} {[%emt
00:00:05]} 7. d3 {[%clk 00:03:02]} {[%emt 00:00:05]} Bd6 {[%clk 00:02:59]}
{[%emt 00:00:12]} 8. O-O {[%clk 00:03:02]} Nge7 {[%clk 00:02:57]} {[%emt
00:00:24]} 9. Re1 {[%clk 00:02:59]} O-O {[%clk 00:02:57]} 10. Bg5 {[%clk
00:02:57]} Qf7 {[%clk 00:02:57]} 11. Bxe7 {[%clk 00:02:58]} Qxe7 {[%clk
00:02:55]} 12. Bxc6 {[%clk 00:02:52]} {[%emt 00:00:05]} bxc6 {[%clk 00:02:55]}
{[%emt 00:00:04]} 13. Nxe5 {[%clk 00:02:25]} {[%emt 00:00:24]} Bxe5 {[%clk
00:02:55]} 14. Qh5 {[%clk 00:02:26]} {[%emt 00:00:05]} Qf6 {[%clk 00:02:48]}
{[%emt 00:00:07]} 15. Qxe5 {[%clk 00:02:27]} {[%emt 00:00:05]} Qxf2+ {[%clk
00:02:46]} {[%emt 00:00:05]} 16. Kh1 {[%clk 00:02:28]} Bh3 {[%clk 00:02:14]}
{[%emt 00:00:37]} 17. Rg1 {[%clk 00:02:30]} Rae8 {[%clk 00:02:08]} {[%emt
00:00:18]} 18. Qc3 {[%clk 00:02:12]} {[%emt 00:00:04]} Bd7 {[%clk 00:01:51]}
{[%emt 00:00:27]} 19. Raf1 {[%clk 00:02:12]} Qb6 {[%clk 00:01:49]} 20. Rxf8+
{[%clk 00:01:26]} {[%emt 00:00:45]} Rxf8 {[%clk 00:01:47]} {[%emt 00:00:26]} 21.
Qe5 {[%clk 00:01:27]} Re8 {[%clk 00:01:38]} 22. Qf4 {[%clk 00:01:29]} Rf8
{[%clk 00:01:24]} {[%emt 00:00:08]} 23. Qg5 {[%clk 00:01:13]} {[%emt 00:00:18]}
Qxb2 {[%clk 00:01:18]} {[%emt 00:00:13]} 24. Qe7 {[%clk 00:01:14]} Bc8 {[%clk
00:01:08]} {[%emt 00:00:05]} 25. Qxc7 {[%clk 00:01:09]} {[%emt 00:00:16]} Qxc2
{[%clk 00:01:01]} {[%emt 00:00:04]} 26. Nh5 {[%clk 00:01:09]} {[%emt 00:00:42]}
Qc3 {[%clk 00:00:57]} 27. Qxa7 {[%clk 00:01:00]} Bg4 {[%clk 00:00:56]} 28. Ng3
{[%clk 00:00:59]} h5 {[%clk 00:00:55]} 29. h3 {[%clk 00:00:57]} Qxd3 {[%clk
00:00:52]} {[%emt 00:00:10]} 30. Kh2 {[%clk 00:00:34]} {[%emt 00:00:09]} h4
{[%clk 00:00:49]} {[%emt 00:00:04]} 31. Nh1 {[%clk 00:00:35]} Bxh3 {[%clk
00:00:39]} {[%emt 00:00:17]} 32. gxh3 {[%clk 00:00:24]} {[%emt 00:00:08]} Qe2+
{[%clk 00:00:33]} {[%emt 00:00:08]} 33. Rg2 {[%clk 00:00:25]} Qe5+ {[%clk
00:00:34]} 34. Kg1 {[%clk 00:00:27]} Qe1+ {[%clk 00:00:20]} {[%emt 00:03:55]}
35. Kh2 {[%clk 00:00:28]} 1/2-1/2

[Event "MČR 2022 blesk"]
[Site "Turnov, Czech Republic"]
[Date "2022.09.10"]
[Round "14.2"]
[White "Trepka, Jan"]
[Black "Cerveny, Martin"]
[Result "0-1"]
[TimeControl "2x 3 min + 2s/move"]
[WhiteElo "2127"]
[BlackElo "2288"]

1. d4 {[%clk 00:03:02]} {[%emt 00:01:49]} Nf6 {[%clk 00:03:03]} 2. Nf3 {[%clk
00:03:03]} {[%emt 00:01:04]} c5 {[%clk 00:03:04]} 3. d5 {[%clk 00:03:04]} b5
{[%clk 00:03:05]} 4. c4 {[%clk 00:03:00]} e6 {[%clk 00:03:01]} 5. dxe6 {[%clk
00:03:00]} {[%emt 00:00:35]} fxe6 {[%clk 00:03:02]} 6. cxb5 {[%clk 00:03:01]}
d5 {[%clk 00:03:02]} 7. Nc3 {[%clk 00:03:02]} a6 {[%clk 00:02:59]} 8. e4 {[%clk
00:02:55]} d4 {[%clk 00:02:49]} 9. e5 {[%clk 00:02:56]} dxc3 {[%clk 00:02:44]}
10. Qxd8+ {[%clk 00:02:56]} Kxd8 {[%clk 00:02:45]} 11. exf6 {[%clk 00:02:57]}
gxf6 {[%clk 00:02:30]} 12. bxc3 {[%clk 00:02:55]} Bg7 {[%clk 00:02:01]} 13. Be3
{[%clk 00:02:41]} Nd7 {[%clk 00:01:57]} 14. a4 {[%clk 00:02:35]} axb5 {[%clk
00:01:34]} 15. Bxb5 {[%clk 00:02:35]} Bb7 {[%clk 00:01:12]} 16. Rd1 {[%clk
00:02:29]} 0-1

[Event "MČR 2022 blesk"]
[Site "Turnov, Czech Republic"]
[Date "2022.09.10"]
[Round "14.3"]
[White "Balacek, Tadeas"]
[Black "Borkovec, Milan"]
[Result "1-0"]
[TimeControl "2x 3 min + 2s/move"]
[WhiteElo "2257"]
[BlackElo "1959"]

1. c4 {[%clk 00:03:02]} e5 {[%clk 00:03:03]} 2. b3 {[%clk 00:03:03]} Nf6 {[%clk
00:03:02]} 3. Bb2 {[%clk 00:03:04]} Nc6 {[%clk 00:03:03]} 4. g3 {[%clk
00:03:04]} d5 {[%clk 00:03:01]} 5. cxd5 {[%clk 00:03:04]} Nxd5 {[%clk
00:03:01]} 6. Bg2 {[%clk 00:03:05]} Be7 {[%clk 00:02:32]} 7. Nc3 {[%clk
00:02:54]} Nb6 {[%clk 00:02:28]} 8. d3 {[%clk 00:02:53]} O-O {[%clk 00:02:26]}
9. Nf3 {[%clk 00:02:53]} Re8 {[%clk 00:02:24]} 10. O-O {[%clk 00:02:53]} Bf8
{[%clk 00:02:25]} 11. Nd2 {[%clk 00:02:43]} Nd4 {[%clk 00:02:16]} 12. Nc4
{[%clk 00:02:38]} c6 {[%clk 00:02:07]} 13. e3 {[%clk 00:02:33]} Nxc4 {[%clk
00:01:52]} 14. dxc4 {[%clk 00:02:25]} Ne6 {[%clk 00:01:51]} 15. Qxd8 {[%clk
00:02:21]} Rxd8 {[%clk 00:01:52]} {[%emt 00:02:17]} 16. Rad1 {[%clk 00:02:21]}
Bd7 {[%clk 00:01:29]} 17. Rd2 {[%clk 00:02:07]} Be8 {[%clk 00:01:16]} 18. Rfd1
{[%clk 00:02:04]} Rxd2 {[%clk 00:01:17]} {[%emt 00:00:05]} 19. Rxd2 {[%clk
00:02:05]} Rd8 {[%clk 00:01:17]} 20. Rxd8 {[%clk 00:02:00]} Nxd8 {[%clk
00:01:18]} 21. a3 {[%clk 00:01:54]} f6 {[%clk 00:01:16]} {[%emt 00:01:07]} 22.
b4 {[%clk 00:01:45]} Bf7 {[%clk 00:01:12]} 23. c5 {[%clk 00:01:29]} Bc4 {[%clk
00:01:11]} 24. f4 {[%clk 00:01:18]} exf4 {[%clk 00:01:06]} {[%emt 00:00:05]} 25.
gxf4 {[%clk 00:01:15]} Kf7 {[%clk 00:01:04]} 26. Kf2 {[%clk 00:01:09]} f5
{[%clk 00:00:47]} 27. e4 {[%clk 00:01:07]} fxe4 {[%clk 00:00:44]} {[%emt
00:01:10]} 28. Nxe4 {[%clk 00:01:03]} h6 {[%clk 00:00:25]} 29. Ke3 {[%clk
00:01:04]} Be7 {[%clk 00:00:22]} 30. Nd2 {[%clk 00:00:53]} Be6 {[%clk
00:00:22]} {[%emt 00:00:05]} 31. Nf3 {[%clk 00:00:53]} Bf6 {[%clk 00:00:18]} 32.
Ne5+ {[%clk 00:00:52]} Bxe5 {[%clk 00:00:19]} 33. Bxe5 {[%clk 00:00:52]} g6
{[%clk 00:00:16]} {[%emt 00:01:03]} 34. Kd4 {[%clk 00:00:31]} Bf5 {[%clk
00:00:13]} 35. b5 {[%clk 00:00:27]} Ke6 {[%clk 00:00:06]} 36. Bc7 {[%clk
00:00:25]} Ke5+ {[%emt 00:01:09]} 37. Ke4+ Ke6+ 38. Kd4 1-0

[Event "MČR 2022 blesk"]
[Site "Turnov, Czech Republic"]
[Date "2022.09.10"]
[Round "14.5"]
[White "Vykouk, Jan"]
[Black "Novosadova, Kristyna"]
[Result "1-0"]
[TimeControl "2x 3 min + 2s/move"]
[WhiteElo "2352"]
[BlackElo "2050"]

1. Nf3 {[%clk 00:03:02]} {[%emt 00:00:11]} d5 {[%clk 00:03:02]} 2. b3 {[%clk
00:03:03]} Nf6 {[%clk 00:03:03]} 3. Bb2 {[%clk 00:03:04]} {[%emt 00:00:05]} c6
{[%clk 00:03:04]} 4. e3 {[%clk 00:03:05]} Bg4 {[%clk 00:03:03]} 5. Be2 {[%clk
00:03:05]} {[%emt 00:00:04]} Nbd7 {[%clk 00:03:04]} 6. c4 {[%clk 00:03:06]} Rc8
{[%clk 00:03:02]} {[%emt 00:00:05]} 7. O-O {[%clk 00:03:03]} {[%emt 00:00:09]}
g6 {[%clk 00:02:56]} {[%emt 00:00:04]} 8. d4 {[%clk 00:03:00]} {[%emt
00:00:05]} Bg7 {[%clk 00:02:57]} 9. Nc3 {[%clk 00:02:52]} {[%emt 00:00:09]} h5
{[%clk 00:02:57]} {[%emt 00:00:04]} 10. cxd5 {[%clk 00:02:49]} {[%emt
00:00:05]} cxd5 {[%clk 00:02:56]} 11. Rc1 {[%clk 00:02:48]} {[%emt 00:00:06]}
O-O {[%clk 00:02:44]} {[%emt 00:00:19]} 12. h3 {[%clk 00:02:35]} {[%emt
00:00:08]} Bf5 {[%clk 00:02:29]} {[%emt 00:00:25]} 13. Qd2 {[%clk 00:02:33]}
Ne4 {[%clk 00:02:21]} {[%emt 00:00:09]} 14. Nxe4 {[%clk 00:02:26]} {[%emt
00:00:10]} Bxe4 {[%clk 00:02:12]} {[%emt 00:00:07]} 15. Rxc8 {[%clk 00:02:19]}
{[%emt 00:00:09]} Qxc8 {[%clk 00:02:12]} 16. Rc1 {[%clk 00:02:20]} {[%emt
00:00:06]} Qd8 {[%clk 00:02:12]} 17. Ba3 {[%clk 00:02:15]} {[%emt 00:00:08]}
Re8 {[%clk 00:02:10]} {[%emt 00:00:09]} 18. Qc3 {[%clk 00:01:39]} {[%emt
00:00:32]} e5 {[%clk 00:02:01]} {[%emt 00:00:09]} 19. Qc7 {[%clk 00:01:30]}
{[%emt 00:00:12]} exd4 {[%clk 00:01:16]} {[%emt 00:00:47]} 20. exd4 {[%clk
00:01:08]} {[%emt 00:00:23]} Bf5 {[%clk 00:00:36]} {[%emt 00:00:43]} 21. Qxd8
{[%clk 00:00:59]} {[%emt 00:00:15]} Rxd8 {[%clk 00:00:35]} 22. Rc7 {[%clk
00:00:56]} {[%emt 00:00:04]} Rb8 {[%clk 00:00:29]} {[%emt 00:00:12]} 23. Bd6
{[%clk 00:00:49]} {[%emt 00:00:05]} Nf6 {[%clk 00:00:26]} {[%emt 00:00:04]} 24.
Bf4 {[%clk 00:00:15]} {[%emt 00:00:40]} Re8 {[%clk 00:00:14]} {[%emt 00:00:10]}
25. Bb5 {[%clk 00:00:15]} {[%emt 00:00:06]} Re4 {[%clk 00:00:15]} 26. Rc8+
{[%clk 00:00:13]} {[%emt 00:00:10]} Kh7 {[%clk 00:00:16]} 27. Ng5+ {[%clk
00:00:14]} 1-0

[Event "MČR 2022 blesk"]
[Site "Turnov, Czech Republic"]
[Date "2022.09.10"]
[Round "14.7"]
[White "Finek, Vaclav"]
[Black "Sipek, Michal"]
[Result "1-0"]
[TimeControl "2x 3 min + 2s/move"]
[WhiteElo "2101"]
[BlackElo "1991"]

1. d4 {[%clk 00:03:03]} d5 {[%clk 00:03:03]} 2. c4 {[%clk 00:03:04]} e6 {[%clk
00:03:02]} 3. Nc3 {[%clk 00:03:05]} Nf6 4. cxd5 exd5 {[%clk 00:03:01]} 5. Bg5
{[%clk 00:03:07]} Be7 {[%clk 00:02:56]} 6. e3 {[%clk 00:03:07]} c6 {[%clk
00:02:52]} 7. Bd3 {[%clk 00:03:08]} h6 {[%clk 00:02:41]} 8. Bf4 {[%clk
00:03:06]} {[%emt 00:01:18]} Bd6 {[%clk 00:02:36]} 9. Bxd6 {[%clk 00:02:52]}
Qxd6 {[%clk 00:02:37]} 10. Nf3 {[%clk 00:02:53]} Bg4 {[%clk 00:02:21]} 11. h3
{[%clk 00:02:50]} Bxf3 {[%clk 00:02:06]} 12. Qxf3 {[%clk 00:02:50]} Nbd7 {[%clk
00:02:06]} 13. O-O {[%clk 00:02:40]} O-O {[%clk 00:02:03]} {[%emt 00:00:28]} 14.
Qe2 {[%clk 00:02:31]} Rae8 {[%clk 00:01:47]} 15. Rae1 {[%clk 00:02:27]} g6
{[%clk 00:01:45]} 16. Qc2 {[%clk 00:02:28]} Kg7 {[%clk 00:01:45]} 17. a3 {[%clk
00:01:54]} a6 {[%clk 00:01:41]} 18. Rd1 {[%clk 00:01:50]} Re7 {[%clk 00:01:28]}
19. Qb3 {[%clk 00:01:45]} Qc7 {[%clk 00:01:22]} 20. Rfe1 {[%clk 00:01:41]}
{[%emt 00:00:18]} Nb6 {[%clk 00:01:16]} 21. Qc2 {[%clk 00:01:37]} Nc8 {[%clk
00:01:13]} 22. f3 {[%clk 00:01:34]} Rfe8 {[%clk 00:00:50]} 23. e4 {[%clk
00:01:30]} {[%emt 00:00:51]} dxe4 {[%clk 00:00:45]} 24. fxe4 {[%clk 00:01:31]}
Nh5 {[%clk 00:00:46]} 25. Qf2 {[%clk 00:01:29]} Qf4 {[%clk 00:00:45]} 26. Qc2
{[%clk 00:01:03]} Qc7 {[%clk 00:00:35]} 27. e5 {[%clk 00:00:57]} Nb6 {[%clk
00:00:28]} 28. Ne4 {[%clk 00:00:50]} Nd5 {[%clk 00:00:21]} 29. Bc4 {[%clk
00:00:51]} Nhf4 {[%clk 00:00:17]} 30. Kh2 {[%clk 00:00:45]} Kg8 {[%clk
00:00:07]} 31. g3 {[%clk 00:00:41]} Nh5 {[%clk 00:00:06]} 32. Rf1 {[%clk
00:00:32]} Kg7 {[%clk 00:00:07]} 33. Be2 {[%clk 00:00:31]} Ne3 {[%clk
00:00:06]} 34. Qd2 {[%clk 00:00:24]} Nxf1+ {[%clk 00:00:07]} 35. Rxf1 {[%clk
00:00:25]} Qd7 {[%clk 00:00:08]} {[%emt 00:00:36]} 36. Bxh5 {[%clk 00:00:25]}
{[%emt 00:00:04]} gxh5 {[%clk 00:00:08]} 37. Nf6 {[%clk 00:00:26]} Qe6 {[%clk
00:00:07]} 38. Qd3 {[%clk 00:00:26]} Rh8 {[%clk 00:00:07]} 39. Nxh5+ {[%clk
00:00:25]} {[%emt 00:00:04]} Kf8 {[%clk 00:00:08]} 40. Nf6 {[%clk 00:00:26]}
Qd5 {[%clk 00:00:05]} 41. Nxd5 1-0

[Event "MČR 2022 blesk"]
[Site "Turnov, Czech Republic"]
[Date "2022.09.10"]
[Round "14.8"]
[White "Sipek, Oldrich"]
[Black "Simacek, Pavel"]
[Result "1-0"]
[TimeControl "2x 3 min + 2s/move"]
[WhiteElo "1959"]
[BlackElo "2365"]

1. e4 {[%clk 00:03:01]} c6 {[%clk 00:02:59]} 2. d4 {[%clk 00:03:02]} d5 {[%clk
00:03:00]} {[%emt 00:00:56]} 3. f3 {[%clk 00:03:03]} e6 {[%clk 00:02:56]} 4.
Nc3 {[%clk 00:03:00]} Nf6 {[%clk 00:02:54]} 5. Be3 {[%clk 00:02:58]} Bb4 {[%clk
00:02:40]} {[%emt 00:00:09]} 6. Qd3 {[%clk 00:02:33]} b6 {[%clk 00:02:16]} 7.
exd5 {[%clk 00:01:57]} Nxd5 {[%clk 00:02:08]} 8. Nge2 {[%clk 00:01:45]} Ba6
{[%clk 00:02:00]} 9. Qd2 {[%clk 00:01:35]} Nd7 {[%clk 00:01:42]} 10. a3 {[%clk
00:01:36]} Bxe2 {[%clk 00:01:33]} 11. Bxe2 {[%clk 00:01:35]} Bxc3 {[%clk
00:01:29]} {[%emt 00:00:09]} 12. bxc3 {[%clk 00:01:36]} Nxe3 {[%clk 00:01:22]}
13. Qxe3 {[%clk 00:01:37]} O-O {[%clk 00:01:22]} 14. O-O {[%clk 00:01:37]}
{[%emt 00:00:08]} c5 {[%clk 00:01:20]} 15. Bb5 {[%clk 00:01:29]} cxd4 {[%clk
00:01:17]} 16. cxd4 {[%clk 00:01:24]} Nf6 {[%clk 00:01:18]} 17. a4 {[%clk
00:00:46]} {[%emt 00:00:05]} Qd6 {[%clk 00:01:07]} 18. a5 {[%clk 00:00:42]} a6
{[%clk 00:00:59]} 19. Bd3 {[%clk 00:00:38]} b5 {[%clk 00:00:59]} 20. c4 {[%clk
00:00:31]} bxc4 {[%clk 00:00:53]} {[%emt 00:00:08]} 21. Bxc4 {[%clk 00:00:32]}
Rfd8 {[%clk 00:00:51]} 22. Rfd1 {[%clk 00:00:29]} h6 {[%clk 00:00:51]} 23. Qe5
{[%clk 00:00:29]} Qb4 {[%clk 00:00:35]} {[%emt 00:02:05]} 24. Be2 {[%clk
00:00:17]} Nd5 {[%clk 00:00:34]} 25. Rdc1 {[%clk 00:00:07]} Nc3 {[%clk
00:00:31]} 26. Bd3 {[%clk 00:00:06]} {[%emt 00:01:04]} Rxd4 {[%clk 00:00:25]}
27. Be4 {[%clk 00:00:04]} Nxe4 {[%clk 00:00:23]} {[%emt 00:00:44]} 28. fxe4
{[%clk 00:00:05]} Rxe4 {[%clk 00:00:21]} 29. Qc7 {[%clk 00:00:06]} {[%emt
00:00:05]} Qd4+ {[%clk 00:00:20]} 30. Kh1 {[%clk 00:00:07]} Rd8 {[%clk
00:00:18]} 31. h3 {[%clk 00:00:05]} {[%emt 00:00:04]} Re2 {[%clk 00:00:15]} 1-0